Cogmind - Beta 13 @@@ ROGUE MODE // 2024.04.25 @ 22:16:42 Player: Phosphorus Result: Destroyed by G-47 Trooper with Particle Gun Performance ------------- Evolutions (2) 1000 Regions Visited (6) 1200 Robots Destroyed (97) 485 Value Destroyed (3250) 3250 Prototype IDs (46) 920 Alien Tech Used (0) 0 Bonus (845) 845 TOTAL SCORE: 7700 Bonus ------- High Alert Combat Kills 271 Follower Combat Kills 74 Entered Garrisons 200 Aligned with FarCom 300 Cogmind --------- Core Integrity 0/550 Matter 73/300 Energy 100/100 System Corruption 3% Temperature Warm (186) Movement Core (1600) Ox31 Location -8/Garrison Parts ------- > --- POWER (1) -------- (None) > --- PROPULSION (4) --- (None) > --- UTILITY (4) ------ Huge Storage Unit > --- WEAPON (2) ------- Gauss Cannon Gauss Cannon > --- INVENTORY (25) --- Light Ion Engine Deuterium Engine Deuterium Engine Deuterium Engine Deuterium Engine Improved VTOL Module Improved VTOL Module Improved VTOL Module Improved VTOL Module Improved Heat Sink High-capacity Storage Unit High-capacity Matter Pod (0) Hacking Suite Hacking Suite Enhanced Autogun Enhanced Autogun Gauss Cannon Gauss Cannon Mini Grenade Launcher Mini Grenade Launcher Improved Datajack Field Lobotomy Kit (5) Katana Peak State ------------ > --- POWER ------------ Cooled Ion Engine > --- PROPULSION ------- Light Treads Light Treads Light Treads Light Treads > --- UTILITY ---------- Improved Heat Sink Huge Storage Unit Improved Light Armor Plating Reflective Plating > --- WEAPON ----------- Gauss Cannon Gauss Cannon > --- INVENTORY -------- Light Ion Engine Cooled Ion Engine Light Treads Light Treads Light Treads Light Treads Improved VTOL Module Improved VTOL Module Improved VTOL Module Improved VTOL Module High-capacity Storage Unit High-capacity Matter Pod Light Armor Plating Improved Light Armor Plating Hacking Suite Enhanced Autogun Enhanced Autogun Gauss Cannon Gauss Cannon Mini Grenade Launcher Mini Grenade Launcher Improved Grenade Launcher Improved Datajack Field Lobotomy Kit Katana [Rating: 32] Favorites ----------- Power Ion Engine Engine Ion Engine Propulsion Light Treads Treads Light Treads Flight Unit Improved VTOL Module Utility Huge Storage Unit Device Improved Heat Sink Storage Huge Storage Unit Processor Transport Network Coupler Protection Light Armor Plating Weapon Gauss Cannon Energy Gun Small Laser Energy Cannon Beam Cannon Ballistic Gun Enhanced Autogun Ballistic Cannon Gauss Cannon Launcher Improved Grenade Launcher Special Weapon Mining Laser Slashing Weapon Katana Special Melee Weapon Datajack Build | -11 -10 -10 -10 -9 -8 -8 ------- Run | Yrd Mat Min Exi Min Mat Gar Slots Evolved 4 | . . . . . 4 . Power . | . . . . . . . Propulsion 2 | . . . . . 2 . Utility 2 | . . . . . 2 . Weapon . | . . . . . . . Parts Attached 100 | 7 7 2 3 3 69 9 Power 6 | 1 . . . . 4 1 Engine 6 | 1 . . . . 4 1 Core . | . . . . . . . Reactor . | . . . . . . . Propulsion 21 | 2 . . . . 17 2 Treads 20 | 2 . . . . 16 2 Leg . | . . . . . . . Wheel . | . . . . . . . Hover . | . . . . . . . Flight 1 | . . . . . 1 . Utility 21 | 2 3 2 . . 12 2 Device 3 | 1 . . . . 2 . Storage 3 | 1 1 1 . . . . Processor 1 | . . . . . 1 . Hackware . | . . . . . . . Protection 14 | . 2 1 . . 9 2 Artifact . | . . . . . . . Weapon 52 | 2 4 . 3 3 36 4 Energy Gun 3 | 1 1 . . . 1 . Energy Cannon 5 | . 1 . . 1 3 . Ballistic Gun 18 | 1 1 . 2 1 13 . Ballistic Cannon 14 | . . . . . 12 2 Launcher 9 | . . . . 1 7 1 Special Weapon 1 | . 1 . . . . . Impact Weapon . | . . . . . . . Slashing Weapon 1 | . . . . . . 1 Piercing Weapon . | . . . . . . . Special Melee Weapon 1 | . . . 1 . . . Unidentified Prototypes 5 | . . . . . 5 . Parts Lost 32 | . 1 . . . 17 14 Power 4 | . . . . . 2 2 Propulsion 13 | . . . . . 7 6 Utility 11 | . 1 . . . 5 5 Weapon 4 | . . . . . 3 1 Highest Loss Streak 9 | . 1 . . . 7 9 To Critical Strikes . | . . . . . . . Average Slot Usage (%) 96 | . 99 100 86 100 97 90 Engine 10 | . 14 14 14 14 8 8 Treads 32 | . 28 28 28 28 35 32 Device 6 | . 8 . . . 8 1 Storage 10 | . 14 14 14 14 9 9 Processor 2 | . . . . . 4 . Protection 12 | . 4 14 14 14 13 20 Energy Gun 2 | . 9 14 1 . . . Energy Cannon 4 | . 12 14 . 13 2 . Ballistic Gun 4 | . 3 . . 14 5 . Ballistic Cannon 6 | . . . . . 9 14 Special Melee Weapon 1 | . . . 13 . . . Naked Turns . | . . . . . . . Heaviest Build 111 | 15 52 92 91 92 110 111 Greatest Support 80 | 40 40 40 40 40 80 80 Greatest Overweight (x) 36 | 2 1 2 2 2 36 2 Average Overweight (x) 1 | . . 1 2 2 1 1 Largest Inventory Capacity 25 | 8 20 25 25 25 25 25 Average Capacity 23 | 7 15 23 25 25 25 25 Most Carried 25 | 7 19 25 25 25 25 25 Average Carried 22 | 4 13 22 24 24 24 24 Final Capacity 25 | 8 20 25 25 25 25 25 Final Carried 25 | 7 19 24 24 25 24 23 Class Distribution -------------------- 52% | Mutant 47% | Scavenger-Mutant Dominant Class ---------------- Mutant | -10/Materials Mutant | -10/Mines Mutant | -10/Exiles Mutant | -9/Mines Scavenger-Mutant | -8/Materials Scavenger-Mutant | -8/Garrison Resources | -11 -10 -10 -10 -9 -8 -8 ----------- Run | Yrd Mat Min Exi Min Mat Gar Matter Collected 2945 | 282 331 117 30 38 1758 389 Remotely . | . . . . . . . Salvage Created 3109 | 106 439 221 . 23 1890 430 Parts 187 | 10 24 6 . 4 109 34 Haulers Intercepted 8 | . 2 . . . 6 . Recyclers Shooed 6 | 1 . . . . 5 . Parts Field Recycled . | . . . . . . . Retrieved Matter . | . . . . . . . Parts Self-Destructed . | . . . . . . . Prevented . | . . . . . . . Kills | -11 -10 -10 -10 -9 -8 -8 ------- Run | Yrd Mat Min Exi Min Mat Gar Combat Hostiles Destroyed 70 | . 12 1 . 3 39 15 Melee 4 | . . . . . . 4 Guns 4 | . . . . . 4 . Cannons 37 | . 12 1 . . 18 6 AOE 25 | . . . . 3 17 5 Classes Destroyed 15 | 2 3 1 . . 8 1 Worker 4 | . . . . . 4 . Builder 2 | . . . . . 2 . Tunneler 1 | 1 . . . . . . Hauler 8 | . 2 . . . 6 . Recycler 8 | 1 1 2 . . 4 . Operator 2 | . . . . . 2 . Watcher 4 | . . . . . 4 . Swarmer 13 | . 6 . . 3 4 . Grunt 37 | . 6 . . . 23 8 Duelist 2 | . . . . . 2 . Sentry 11 | . . 1 . . 6 4 Specialist 2 | . . . . . 2 . Hunter 1 | . . . . . 1 . Programmer 3 | . . . . . . 3 Heavy 1 | . . . . . 1 . Best Kill Streak 10 | 2 6 2 . 3 10 6 Combat Bots Only 6 | . 5 1 . 3 6 6 Max Kills in Single Turn 3 | 1 1 1 . 3 3 2 Gunslinging . | . . . . . . . Exploded 3 | . . . . 3 3 2 Melee 1 | . . . . . . 1 Uniques/NPCs Destroyed . | . . . . . . . Combat | -11 -10 -10 -10 -9 -8 -8 -------- Run | Yrd Mat Min Exi Min Mat Gar Hostile Shots Fired 413 | . 50 2 . 3 234 124 Missed 106 | . 10 . . 2 62 32 Damage Taken 5403 | . 421 28 . 24 3372 1558 Core 591 | . 32 . . . 382 177 Absorbed by Shields . | . . . . . . . Redirected to Shielding 42 | . . . . . 42 . Ignored by Resistances 20 | . . . . . 20 . Core Remaining (%) 93 | 100 . . . 87 . . Volleys Fired 253 | 4 39 3 . 1 164 42 Largest 2 | 2 2 2 . 1 2 2 Hottest 119 | 70 100 100 . 30 119 96 Shots Fired 451 | 8 77 6 . 1 293 66 Gun 152 | 8 39 3 . . 102 . Cannon 259 | . 37 3 . . 165 54 Launcher 39 | . . . . 1 26 12 Special 1 | . 1 . . . . . Kinetic 306 | 4 24 . . . 224 54 Thermal 106 | 4 53 6 . . 43 . Explosive 39 | . . . . 1 26 12 Electromagnetic . | . . . . . . . Robot Hit Streak 12 | 2 12 3 . . 10 10 Robot Miss Streak 6 | 1 3 1 . . 3 6 Penetration Max 1 | . . . . . 1 . Secondary Targets . | . . . . . . . Shots Hit Robots 283 | 5 47 5 4 . 185 37 Core Hits 157 | 2 19 4 . 3 106 23 Critical Kills . | . . . . . . . Critical Parts Destroyed 1 | . . . . . 1 . Critical Strikes 8 | . . . . . 8 . Destroy 1 | . . . . . 1 . Blast 7 | . . . . . 7 . Melee Attacks 16 | . . . 4 . . 12 Impact . | . . . . . . . Slashing 12 | . . . . . . 12 Piercing . | . . . . . . . Sneak Attacks 4 | . . . 4 . . . Combat Hostiles . | . . . . . . . Follow-up Attacks . | . . . . . . . Damage Inflicted 8348 | 65 713 87 . 112 5509 1862 Guns 1154 | 65 230 24 . . 835 . Cannons 3989 | . 473 52 . . 2714 750 Explosions 2939 | . . . . 112 1937 890 Melee 212 | . . . . . . 212 Ramming 54 | . 10 11 . . 23 10 Kinetic 3735 | 39 106 . . . 2840 750 Thermal 1585 | 26 597 76 . . 886 . Explosive 2762 | . . . . 112 1760 890 Electromagnetic . | . . . . . . . Impact . | . . . . . . . Slashing 212 | . . . . . . 212 Piercing . | . . . . . . . Highest Corruption 3 | . . . . . 1 3 Average Corruption 1 | . . . . . 1 2 Corruption Purged . | . . . . . . . Corruption Blocked . | . . . . . . . Effects 13 | . . . . . 7 6 Message Errors 4 | . . . . . 3 1 Matter Fused 4 | . . . . . 1 3 Heat Flow Errors 2 | . . . . . 1 1 Data Loss (minor) 2 | . . . . . 1 1 Misfires 1 | . . . . . 1 . Overload Shots . | . . . . . . . Overflow Damage 88 | . . . . . 40 48 Projectiles 37 | . . . . . 13 24 Explosions 48 | . . . . . 24 24 Melee 3 | . . . . . 3 . Knockbacks 23 | . . 1 . . 17 5 Impact 1 | . . 1 . . . . Kinetic 20 | . . . . . 15 5 Secondary 2 | . . . . . 2 . Self-Inflicted Damage 205 | . . . . 17 106 82 Shots 13 | . . . . 1 7 5 Rammed 6 | . 2 1 . . 3 . Targets Rammed 10 | . 3 2 . . 4 1 Kicked . | . . . . . . . Crushed 4 | . 1 1 . . 1 1 Highest Temperature 325 | 18 308 105 . . 325 294 Average Temperature 73 | 10 88 48 . . 48 100 Received Heat Transfer 1944 | . 180 9 . . 1134 621 Siege Activations . | . . . . . . . Robots Corrupted . | . . . . . . . Combat Hostiles . | . . . . . . . Parts Fried . | . . . . . . . Impact Corruptions 1 | . . . . . 1 . Robots Melted . | . . . . . . . Combat Hostiles . | . . . . . . . Parts Melted 4 | . 3 . . . 1 . Heat Transferred 2732 | 74 1274 161 . . 1223 . Parts Sabotaged . | . . . . . . . Parts Stolen . | . . . . . . . Parts Stripped . | . . . . . . . Power Chain Reactions . | . . . . . . . Alert | -11 -10 -10 -10 -9 -8 -8 ------- Run | Yrd Mat Min Exi Min Mat Gar Peak Influence 684 | 10 302 54 . 73 593 684 Initial 385 | . 6 . . . 27 385 Average 244 | 2 85 38 . 72 288 518 Maximum Alert Level 2 | . 1 . . . 2 2 Low Security (%) 35 | 100 87 100 . 100 14 . Level 1 50 | . 12 . . . 76 16 Level 2 13 | . . . . . 9 83 Level 3 . | . . . . . . . Level 4 . | . . . . . . . Level 5 . | . . . . . . . High Security . | . . . . . . . Max Security . | . . . . . . . Squads Dispatched 7 | . 2 . . . 5 . Investigation . | . . . . . . . Extermination . | . . . . . . . Reinforcement 7 | . 2 . . . 5 . Assault . | . . . . . . . Garrison . | . . . . . . . Intercept . | . . . . . . . Searches Triggered . | . . . . . . . Construction Impeded 1 | . . . . . 1 . Haulers Reinforced . | . . . . . . . Active Scanning Responses . | . . . . . . . Cargo Convoy Interrupts . | . . . . . . . Stealth | -11 -10 -10 -10 -9 -8 -8 --------- Run | Yrd Mat Min Exi Min Mat Gar Distress Signals 14 | . 5 . . . 9 . Communications Jammed . | . . . . . . . Distress Signals . | . . . . . . . Times Spotted 105 | . 22 2 . 3 62 16 Peak Tracking Total 6 | . 5 1 . 3 6 5 Tactical Retreats 3 | . 2 . . . 1 . Traps | -11 -10 -10 -10 -9 -8 -8 ------- Run | Yrd Mat Min Exi Min Mat Gar Traps Triggered 3 | . . . . . 3 . Indirectly . | . . . . . . . Trap Hack Attempts . | . . . . . . . Triggered . | . . . . . . . Disarmed . | . . . . . . . Reprogrammed . | . . . . . . . Reused . | . . . . . . . Traps Extracted . | . . . . . . . Installed . | . . . . . . . Triggered . | . . . . . . . Machines | -11 -10 -10 -10 -9 -8 -8 ---------- Run | Yrd Mat Min Exi Min Mat Gar Machines Disabled 11 | . 1 . . . 8 2 Max in Single Turn 3 | . 1 . . . 3 1 Garrison Relay 1 | . . . . . . 1 Machines Repaired . | . . . . . . . Machines Dismantled . | . . . . . . . Machines Sabotaged . | . . . . . . . Overloaded Fab Kills . | . . . . . . . Hacking | -11 -10 -10 -10 -9 -8 -8 --------- Run | Yrd Mat Min Exi Min Mat Gar Machines Accessed 21 | . 7 . 2 . 11 1 Terminals 15 | . 6 . . . 8 1 Fabricators . | . . . . . . . Repair Stations 1 | . 1 . . . . . Recycling Units 1 | . . . . . 1 . Scanalyzers 1 | . . . . . 1 . Garrison Access 1 | . . . . . 1 . Total Hacks 51 | . 20 . 2 . 28 1 Successful 23 | . 8 . 2 . 12 1 Failed 27 | . 12 . . . 15 . Catastrophic 3 | . . . . . 3 . Database Lockouts 1 | . . . . . 1 . Manual 20 | . 11 . 1 . 8 . Terminals 41 | . 18 . . . 22 1 Fabricators . | . . . . . . . Repair Stations 2 | . 2 . . . . . Recycling Units 3 | . . . . . 3 . Scanalyzers 2 | . . . . . 2 . Garrison Access 1 | . . . . . 1 . Terminal Hacks 17 | . 7 . 2 . 7 1 Record 1 | . . . 1 . . . Part Schematic 2 | . 1 . . . 1 . Prototype ID Bank 2 | . 1 . . . 1 . Branch Access Points 2 | . 1 . . . 1 . Unreport Threat 2 | . 1 . . . 1 . Locate Traps 1 | . 1 . . . . . Hauler Manifests 2 | . . . . . 2 . Zone Layout 3 | . 2 . . . 1 . Security Stations 1 | . . . . . . 1 Derelict Proto ID Bank 1 | . . . 1 . . . Fabricator Hacks . | . . . . . . . Repair Station Hacks . | . . . . . . . Recycling Unit Hacks 1 | . . . . . 1 . Retrieve Components 1 | . . . . . 1 . Scanalyzer 2 | . . . . . 2 . Insert Component 1 | . . . . . 1 . Analyze 1 | . . . . . 1 . Garrison Access Hacks 1 | . . . . . 1 . Unlock Access 1 | . . . . . 1 . Unauthorized Hacks 2 | . 1 . . . 1 . Terminals 2 | . 1 . . . 1 . Operators 2 | . 1 . . . 1 . Fabricators . | . . . . . . . Repair Stations . | . . . . . . . Recycling Units . | . . . . . . . Scanalyzers . | . . . . . . . Garrison Access . | . . . . . . . Data Cores Recovered . | . . . . . . . Used . | . . . . . . . Hacking Detections 17 | . 7 . . . 10 . Full Trace Events . | . . . . . . . Feedback Events . | . . . . . . . Feedback Blocked . | . . . . . . . Robot Schematics Acquired . | . . . . . . . Robots Built . | . . . . . . . Authchips . | . . . . . . . Time . | . . . . . . . Total Robot Build Rating . | . . . . . . . Part Schematics Acquired 3 | . 1 . . . 2 . Parts Built . | . . . . . . . Authchips . | . . . . . . . Time . | . . . . . . . Total Part Build Rating . | . . . . . . . Parts Repaired . | . . . . . . . Time . | . . . . . . . Parts Recycled . | . . . . . . . Recycled Matter . | . . . . . . . Retrieved Matter . | . . . . . . . Retrieved Components 9 | . . . . . 9 . Parts Scanalyzed 1 | . . . . . 1 . Part Schematics Acquired 1 | . . . . . 1 . Parts Damaged . | . . . . . . . Bothacking | -11 -10 -10 -10 -9 -8 -8 ------------ Run | Yrd Mat Min Exi Min Mat Gar Used RIF Installer . | . . . . . . . Robots Hacked 4 | . . . 4 . . . Non-combat 3 | . . . 3 . . . Combat 1 | . . . 1 . . . Robot Hacks Applied 4 | . . . 4 . . . parse_system 4 | . . . 4 . . . Relay Couplers Released 5 | . . . . . . 5 Machine Destruction 5 | . . . . . . 5 Fabnet Peak Effective % . | . . . . . . . Robots Rewired . | . . . . . . . Allies Hacked . | . . . . . . . Hacks Repelled . | . . . . . . . Allies | -11 -10 -10 -10 -9 -8 -8 -------- Run | Yrd Mat Min Exi Min Mat Gar Total Allies 3 | . . 2 . 1 . . Largest Group 2 | . . 2 2 1 1 . Highest-Rated Group 50 | . . 50 50 31 31 . Highest-Rated Ally 31 | . . 31 31 31 31 . Total Orders . | . . . . . . . Ally Attacks 6 | . . 3 . . 3 . Total Damage 108 | . . 64 . . 44 . Kills 2 | . . 1 . . 1 . Allies Corrupted . | . . . . . . . Allies Melted . | . . . . . . . Intel | -11 -10 -10 -10 -9 -8 -8 ------- Run | Yrd Mat Min Exi Min Mat Gar Robot Analysis Total . | . . . . . . . Derelict Logs Recovered 2 | . . 1 . 1 . . Drone Launches . | . . . . . . . Drone Recoveries . | . . . . . . . Exploration | -11 -10 -10 -10 -9 -8 -8 ------------- Run | Yrd Mat Min Exi Min Mat Gar Turns Passed 8245 | 147 1292 362 1137 293 4385 629 Spaces Moved 2765 | 82 536 112 352 88 1400 195 Core 25 | 18 . . . . 7 . Treads 2740 | 64 536 112 352 88 1393 195 Legs . | . . . . . . . Wheels . | . . . . . . . Hover . | . . . . . . . Flight . | . . . . . . . Fastest Speed 50 | 50 160 240 320 320 240 240 Average Speed 251 | 144 207 293 320 320 250 241 Slowest Speed 1850 | 160 240 320 320 320 1850 320 Overloaded Moves . | . . . . . . . Propulsion Burnouts . | . . . . . . . Robots Hopped . | . . . . . . . Cave-ins Triggered . | . . . . . . . Exploration Rate (%) 48 | 6 85 29 73 26 90 29 Regions Visited 6 Branch Regions 3 Pre-discovered Areas 3 | . . . 1 2 . . Known Exits Taken 2 | . 1 . . . 1 . Unknown Exits Taken 4 | 1 . 1 1 1 . . Scrap Searched 1 | . . . . 1 . . Spaces Dug 36 | . 1 . . 3 26 6 Terrain Destroyed 230 | . 1 . . 3 198 28 Melee . | . . . . . . . Projectile 54 | . 1 . . . 47 6 AOE 176 | . . . . 3 151 22 Terrain Rammed . | . . . . . . . Walls Destroyed . | . . . . . . . Machines Disabled . | . . . . . . . Actions | -11 -10 -10 -10 -9 -8 -8 --------- Run | Yrd Mat Min Exi Min Mat Gar Total 3621 | 100 636 138 367 101 2015 264 Wait 326 | . 20 5 . 1 296 4 Move 2759 | 81 535 111 351 87 1399 195 Hop . | . . . . . . . Pick Up 88 | 8 20 10 4 5 40 1 Fast Attach 32 | 6 2 . . . 20 4 Attach 27 | 1 1 . 1 . 22 2 Detach 8 | . 2 . 1 . 5 . Swap 41 | . 4 2 2 3 27 3 Drop 61 | . 10 5 4 4 38 . Fire 253 | 4 39 3 . 1 164 42 Melee 16 | . . . 4 . . 12 Ram . | . . . . . . . Kick . | . . . . . . . Crush 10 | . 3 2 . . 4 1 Escape Stasis . | . . . . . . . Rewire . | . . . . . . . Trap . | . . . . . . . Miscellaneous . | . . . . . . . Route ------- -11/Scrapyard -10/Materials (discovered 3 exits: [*Mat x2] / *Min) -10/Mines -10/Exiles (discovered 2 exits: [*Min x2]) -9/Mines (discovered 2 exits: *Mat x2) -8/Materials (discovered 6 exits: [*Fac x3] / *Sto x2 / Gar) -8/Garrison History --------- Turn | Location | Event 16 | -11/Scrapyard | Discovered new exit (range 16) 148 | -11/Scrapyard | Entered Materials 261 | -10/Materials | Identified exit to Mines 314 | -10/Materials | Build established: Mutant 755 | -10/Materials | Discovered new exit (range 5) 1115 | -10/Materials | Discovered new exit (range 10) 1440 | -10/Materials | Entered Mines 1473 | -10/Mines | Met a Derelict bent on vengeance 1789 | -10/Mines | Deemed a non-threat by the Exiles lab entrance 1789 | -10/Mines | Discovered new exit (range 5) 1802 | -10/Mines | Entered Exiles 1802 | -10/Exiles | Accompanied by 2 allies 1832 | -10/Exiles | Led the pair of lost Derelicts to a safe place 1850 | -10/Exiles | Discovered new exit (range 15) 1889 | -10/Exiles | Met 8R-AWN 1940 | -10/Exiles | Met EX-HEX 2067 | -10/Exiles | Met EX-DEC 2108 | -10/Exiles | Learned location of Zion (-7) 2457 | -10/Exiles | Met EX-BIN 2506 | -10/Exiles | Aligned with FarCom system 2510 | -10/Exiles | Given EX-Vault access code 2593 | -10/Exiles | Opened EX-Vault 2616 | -10/Exiles | Found Field Lobotomy Kit 2690 | -10/Exiles | Warned to stay clear of 0b10 Research branches 2905 | -10/Exiles | Discovered new exit (range 11) 2939 | -10/Exiles | Left Exiles lab with Field Lobotomy Kit 2939 | -10/Exiles | Entered Mines 2942 | -9/Mines | Escorted by a lone wolf Derelict 2962 | -9/Mines | Learned location of Storage (-8) 3058 | -9/Mines | Received a Rocket Launcher from a helpful Derelict 3111 | -9/Mines | Discovered new exit (range 3) 3181 | -9/Mines | Discovered new exit (range 13) 3232 | -9/Mines | Entered Materials 3232 | -8/Materials | Accompanied by 1 ally 3232 | -8/Materials | Evolved 4 slots: Propulsion x2, Utility x2 3233 | -8/Materials | Identified exit to Storage 3518 | -8/Materials | Build established: Scavenger-Mutant 3838 | -8/Materials | Lost 7 parts (1p3n2u1w) 3945 | -8/Materials | Discovered exit to Storage (range 15) 3945 | -8/Materials | Central database locked down 4126 | -8/Materials | Discovered new exit (range 3) 6079 | -8/Materials | Discovered new exit (range 10) 6775 | -8/Materials | Build established: Mutant 7376 | -8/Materials | Discovered new exit (range 8) 7396 | -8/Materials | Core integrity fell below 50% 7432 | -8/Materials | Lost 6 parts (4n2u) 7610 | -8/Materials | Identified exit to Garrison 7617 | -8/Materials | Entered Garrison 7632 | -8/Garrison | Learned Materials security intel 7699 | -8/Garrison | Build established: Scavenger-Mutant 7721 | -8/Garrison | Triggered checkpoint 7776 | -8/Garrison | Lost 4 parts (2n2u) 7974 | -8/Garrison | Garrison Relay disabled 8038 | -8/Garrison | Triggered checkpoint 8051 | -8/Garrison | Triggered checkpoint 8064 | -8/Garrison | Core integrity fell below 20% 8246 | -8/Garrison | Destroyed by G-47 Trooper with Particle Gun Last Messages --------------- 08200_ Imp. Grenade Launcher destroyed. 08203_ The unstable cave ceiling collapses. 08208_ Critical hit (Burn: +37). 08211_ Y-45 Defender destroyed. 08213_ Imp. Light Armor Plating destroyed. 08214_ Acquired 50 matter. 08216_ Lgt. Treads destroyed. 08217_ Y-45 Defender destroyed. 08218_ Acquired 50 matter. 08222_ Slug penetrates G-50 Soldier. 08222_ G-50 Soldier knocked back. 08225_ Destroyed Lgt. Angular Momentum Engine. 08225_ Slug penetrates G-50 Soldier. 08228_ Cld. Ion Engine destroyed. 08232_ Lgt. Treads destroyed. 08234_ Slug penetrates Reinforced Barrier. 08240_ G-50 Soldier destroyed. 08240_ Slug penetrates Reinforced Barrier. 08243_ Slug penetrates G-47 Trooper. 08243_ G-47 Trooper knocked back. Map ----- +----------------------------------------------------+ | ?????# #???????????????????????????????????????? | | ?????# #???????????????????????????????????????? | | ?????# #???????????????????????????????????????? | | ?????# #???????????????????????????????????????? | | ?????# #???????????????????????????????????????? | | ?????# #???????????????????????????????????????? | | ?????# #???????????????????????????????????????? | | ?????# #???????????????????????????????????????? | | ?????# #???????????????????????????????????????? | | ?????# #???????????????????????????????????????? | | ?????# #???????????????????????????????????????? | | ?????# ! #???????????????????????????????????????? | | ###### ############????????????????????????????? | | !=* !! # #????????????????????????????? | | ! # #????????????????????????????? | | # ##[[ #### #### #??????????#?????????????????? | | # ## #??# #??# #????????? #?????????????????? | | ##"### #??# #??# #????????? #?????????????????? | | ## #?# #??# #??# #???????? #?????????????????? | | ## #?# #??# #### #######?? #?????????????????? | | ## #?#[ #?## ## # ##% #? %#?????????????????? | | ## ### = ### # # # %## g #?????????????????? | | "= %%% #?????????????????? | | ###### [[ #?????????????????? | | #????# ![!!! #?????????????????? | | #????############ =![@## #?????????????????? | | #?????????# ### # ![=#? #?????????????????? | | ??????????## # =^^ "?????????????????? | | ???????????#### "?????????????????? | | ??????????????# ^^ "?????????????????? | | ??????????????# "?????????????????? | | ??????????????### ## ## #?????????????????? | | ????????????????# ## #? #?????????????????? | | ??????????????? ?????????????????? | | ?????????????? ? ?????????????????? | | ??????????????### #?????????????????? | | ????????????????######""""#???##?????????????????? | | ?????????????????????????????????????????????????? | | ?????????????????????????????????????????????????? | | ?????????????????????????????????????????????????? | | ?????????????????????????????????????????????????? | | ?????????????????????????????????????????????????? | | ?????????????????????????????????????????????????? | | ?????????????????????????????????????????????????? | | ?????????????????????????????????????????????????? | | ?????????????????????????????????????????????????? | | ?????????????????????????????????????????????????? | | ?????????????????????????????????????????????????? | | ?????????????????????????????????????????????????? | | ?????????????????????????????????????????????????? | +----------------------------------------------------+ Best States ------------- Heat Dissipation 45 Energy Generation 14 Energy Capacity 280 Matter Stores 300 Matter Capacity 300 Sight Range 16 Terrain Scan Density 10 Armor Coverage 450 Resistance: TH 10 Core Shielding 20 Weapon Shielding 33 Evasion (%) 50 Recoil Reduction 4 Item Schematics ----------------- Hcp. Storage Unit | -10/Materials | Hacked Lrg. Storage Unit | -8/Materials | Hacked Hacking Suite | -8/Materials | Scanalyzed Robot Schematics ------------------ None Fabricated ------------ Nothing Alien Tech Used ----------------- None Achievements -------------- None Challenges ------------ None Game ------ Seed TrapBlastFragment Manual? 0 Play Time 00:42:18 Cumulative 119.1 hours Start 2024.04.25 @ 20:54:25 End 2024.04.25 @ 22:16:42 Sessions 3 Manual Loads 0 Difficulty Rogue Special Mode None Game No. 68 Rogue 68 Adventurer 0 Explorer 0 Win Type - Total 4 Types 2/0/0/1/0/0/0/1/0 Lore% 78 Gallery% 71 Achievement% 60 Wizard Run 0 Options --------- Layout 0 ASCII 0 Keyboard 1 Movement Numpad Keybinds 0 Fullscreen 1 Font 18/SmallcapsGlow Map View 76x50 Zoom Use 0% Tactical HUD 1 Map Filters NONE Filters NONE Steam 1 RUN: d579ef58-b37a-4702-9552-7d80f2770809